bitfinex-derivatives/quotes_SOLF0:USTF0_20250509
["timestamp","ask_amount","ask_price","bid_price","bid_amount"]
[1746782610849,6.0164,166.22,166.21,519.98]
[1746782611153,12.0257,166.32,166.21,519.98]
[1746782611345,6.016,166.23,166.21,519.98]
[1746782611554,12.0257,166.32,166.21,519.98]
[1746782611742,350.7966,166.31,166.21,519.98]
[1746782611943,6.0164,166.22,166.21,519.98]
[1746782612142,352.6944,166.3,166.14,3.9447]
[1746782612351,350.7966,166.29,166.14,3.9447]
[1746782612553,6.0172,166.2,166.15,6.0186]
[1746782612749,350.7966,166.29,166.14,3.9447]
[1746782613048,350.7966,166.28,166.14,3.9447]
[1746782613552,6.0175,166.19,166.14,3.9447]
[1746782613752,350.7966,166.28,166.14,3.9447]
[1746782614052,350.7966,166.27,166.14,9.9639]
[1746782614753,350.7966,166.26,166.14,2.004]
[1746782615251,350.7966,166.26,166.13,226.68344236]
[1746782615445,350.7966,166.25,166.12,519.8]
[1746782615758,901.73685748,166.24,166.01,1.04740406]
[1746782616055,16.97540779,166.18,166.01,1.9256]
[1746782616260,352.7768,166.17,166.01,1.9256]
[1746782617350,352.7768,166.17,166.05,6.0222]
[1746782617653,352.7768,166.17,166.01,1.9256]
[1746782617855,6.0193,166.15,166.06,6.0221]
[1746782618051,352.7768,166.17,166.01,1.9256]
[1746782618252,350.7966,166.16,166.01,1.9256]
[1746782618453,350.7966,166.16,166.03,6.0229]
[1746782618654,350.7966,166.16,166.01,1.9256]
[1746782618852,350.7966,166.15,166.01,1.9256]
[1746782619055,6.0216,166.08,165.99,1.9006]
[1746782619255,16.97540779,166.13,165.99,1.9006]
[1746782619556,6.0206,166.11,166.04,6.0226]
[1746782619854,350.7966,166.12,165.99,1.9006]
[1746782620048,350.7966,166.11,165.99,1.9006]
[1746782620659,6.0208,166.1,165.99,1.9006]
[1746782620858,350.7966,166.11,165.99,1.9006]
[1746782621160,356.8172,166.11,166.04,6.0226]
[1746782621456,356.8172,166.11,165.99,1.9006]
[1746782621755,350.7966,166.11,165.99,1.9006]
[1746782622253,6.0211,166.09,166.03,6.0229]
[1746782622461,6.0211,166.09,165.99,1.9006]
[1746782622462,350.7966,166.11,165.99,1.9006]
[1746782622958,6.0207,166.1,166.05,6.0224]
[1746782623148,6.0207,166.1,165.99,1.9006]
[1746782623352,6.0217,166.08,166.03,6.0231]
[1746782623552,6.0217,166.08,165.99,1.9006]
[1746782623553,350.7966,166.11,165.99,1.9006]
[1746782623858,350.7966,166.11,166.06,6.022]
[1746782624058,350.7966,166.11,166.0,16.97540779]
[1746782624460,350.7966,166.11,166.1,6.0207]
[1746782624661,350.7966,166.16,166.0,16.97540779]
[1746782624856,352.00033156,166.15,166.0,16.97540779]
[1746782625160,1.20380402,166.14,166.0,16.97540779]
[1746782625356,1.20380402,166.14,166.01,62.0]
[1746782626261,1.20380402,166.14,166.02,16.97540779]
[1746782626660,7.22310402,166.14,166.09,6.021]
[1746782626861,7.22310402,166.14,166.02,16.97540779]
[1746782627863,1.20380402,166.14,166.02,16.97540779]
[1746782628162,1.20380402,166.14,166.06,16.97540779]
[1746782628362,1.20380402,166.14,166.1,6.0205]
[1746782628559,1.20380402,166.14,166.07,1.9598]
[1746782628862,1.20380402,166.14,166.12,6.0197]
[1746782629265,1.20380402,166.14,166.07,1.9598]
[1746782630164,1.20380402,166.14,166.07,4.0099]
[1746782630465,1.20380402,166.14,166.07,1.9598]
[1746782630776,1.20380402,166.14,166.01,2.0538]
[1746782631062,1.20380402,166.14,166.02,2.0026]
[1746782631259,1.20380402,166.14,166.04,16.97540779]
[1746782631460,1.20380402,166.14,166.02,2.0026]
[1746782632162,6.021,166.1,166.02,2.0026]
[1746782632365,1.20380402,166.14,166.02,2.0026]
[1746782633263,1.20380402,166.14,166.07,6.0218]
[1746782633762,6.02,166.12,166.02,2.0026]
[1746782634267,1.20380402,166.14,165.96,1.04786137]
[1746782634564,1.9967,166.11,165.93,22.81646108]
[1746782635362,1.9967,166.11,165.97,16.98476108]
[1746782635560,1.9967,166.11,166.02,6.0236]
[1746782636167,1.9967,166.11,166.03,6.0233]
[1746782636462,1.9967,166.11,165.97,16.98476108]
[1746782636959,1.9967,166.11,165.93,22.81646108]
[1746782637166,1.9967,166.11,165.96,16.97892565]
[1746782637466,1.9967,166.11,165.93,5.8317]
[1746782637668,6.0242,166.01,165.96,6.0256]
[1746782637860,6.0242,166.01,165.93,5.8317]
[1746782638060,1.9967,166.11,165.93,5.8317]
[1746782638261,1.9967,166.11,165.98,6.0248]
[1746782638467,350.7966,166.1,165.98,6.0248]
[1746782638768,6.0239,166.02,165.97,6.0251]
[1746782639067,350.7966,166.1,165.97,6.0251]
[1746782639269,6.0241,166.01,165.97,6.0251]
[1746782639566,350.7966,166.09,165.93,5.8317]
[1746782639768,367.77552565,166.08,165.93,5.8317]
[1746782640165,12.0447,166.06,165.93,5.8317]
[1746782640365,6.026,165.96,165.93,5.8317]
[1746782640769,6.0256,165.97,165.93,11.8584]
[1746782640961,350.7966,166.05,165.93,5.8317]
[1746782641163,350.7966,166.04,165.93,5.8317]
[1746782641570,350.7966,166.03,165.92,519.86]
[1746782641862,16.97892565,166.0,165.87,1.9774]
[1746782642068,352.6883,165.99,165.83,520.36]
[1746782642264,352.6883,165.99,165.85,6.0296]
[1746782642465,350.7966,165.98,165.83,520.36]
[1746782643368,350.7966,165.98,165.85,6.0297]
[1746782643564,16.97892565,165.96,165.83,520.36]
[1746782643869,352.00163705,165.97,165.83,520.36]
[1746782644171,350.7966,165.96,165.83,520.36]
[1746782644466,6.0278,165.91,165.87,6.0288]
[1746782644672,350.7966,165.96,165.83,520.36]
[1746782644972,352.00178228,165.95,165.83,520.36]
[1746782645173,350.7966,165.94,165.81,3.8697]
[1746782645470,352.00185491,165.94,165.81,3.8697]
[1746782646168,352.00185491,165.94,165.84,6.0299]
[1746782646371,352.00185491,165.94,165.81,3.8697]
[1746782647172,6.0269,165.93,165.81,3.8697]
[1746782647672,6.0269,165.93,165.88,6.0285]
[1746782647866,6.0269,165.93,165.82,16.97892565]
[1746782648275,352.00185491,165.94,165.82,16.97892565]
[1746782648670,6.0275,165.92,165.82,16.97892565]
[1746782648866,352.00185491,165.94,165.82,16.97892565]
[1746782649171,350.7966,165.93,165.81,3.8697]
[1746782649363,350.7966,165.93,165.81,9.9009]
[1746782649567,350.7966,165.93,165.81,3.8697]
[1746782650473,350.7966,165.93,165.82,6.0308]
[1746782650673,350.7966,165.92,165.81,3.8697]
[1746782650876,6.0296,165.86,165.82,6.0309]
[1746782651071,350.7966,165.92,165.81,3.8697]
[1746782651367,350.7966,165.91,165.81,3.8697]
[1746782653578,6.029,165.88,165.83,6.0304]
[1746782653775,350.7966,165.91,165.81,3.8697]
[1746782654779,6.0285,165.89,165.84,6.0302]
[1746782654971,6.0285,165.89,165.81,3.8697]
[1746782655172,350.7966,165.91,165.81,3.8697]
[1746782655374,1.20525491,165.94,165.81,3.8697]
[1746782655776,1.20525491,165.94,165.84,16.97892565]
[1746782655972,1.20525491,165.94,165.9,6.0277]
[1746782656170,1.20525491,165.94,165.84,16.97892565]
[1746782656787,1.20525491,165.94,165.88,16.97892565]
[1746782656987,1.20518228,165.95,165.89,3.8321]
[1746782657188,1.20503705,165.97,165.9,2.0651]
[1746782657390,1.20503705,165.97,165.92,16.97892565]
[1746782657689,1.20503705,165.97,165.9,2.0651]
[1746782658086,6.0259,165.96,165.92,6.0272]
[1746782658288,1.20503705,165.97,165.9,2.0651]
[1746782658492,6.028,165.9,165.77,748.03777617]
[1746782658786,354.0064,165.96,165.78,1.9978]
[1746782659090,6.0302,165.84,165.79,6.0317]
[1746782659287,350.7966,165.93,165.78,1.9978]
[1746782659586,350.7966,165.92,165.78,1.9978]
[1746782660086,6.029,165.88,165.78,1.9978]
[1746782660284,350.7966,165.92,165.78,1.9978]
[1746782661685,6.0301,165.85,165.8,6.0315]
[1746782661882,350.7966,165.92,165.78,1.9978]
[1746782662985,16.97892565,165.9,165.77,748.03777617]
[1746782663488,16.97892565,165.9,165.78,6.0323]
[1746782663690,16.97892565,165.9,165.77,748.03777617]
[1746782663887,16.97892565,165.86,165.73,1.8865]
[1746782664085,354.0398,165.85,165.73,1.8865]
[1746782664591,6.0315,165.81,165.73,1.8865]
[1746782664993,354.0398,165.85,165.73,1.8865]
[1746782665197,6.0315,165.81,165.77,6.0325]
[1746782665690,6.0318,165.8,165.76,6.033]
[1746782665892,354.0398,165.85,165.71,2.0401]
[1746782666389,6.0318,165.8,165.71,2.0401]
[1746782666783,6.0315,165.81,165.76,6.0328]
[1746782666990,354.0398,165.85,165.71,2.0401]
[1746782667288,16.97892565,165.84,165.73,6.0338]
[1746782667490,16.97892565,165.84,165.71,2.0401]
[1746782668094,354.0398,165.85,165.71,2.0401]
[1746782668491,6.0313,165.81,165.71,2.0401]
[1746782669589,354.0398,165.85,165.71,2.0401]
[1746782670595,6.0314,165.81,165.71,2.0401]
[1746782670792,354.0398,165.85,165.71,2.0401]
[1746782671185,350.7966,165.84,165.73,6.0339]
[1746782671388,350.7966,165.84,165.71,2.0401]
[1746782671794,350.7966,165.83,165.71,2.0401]
[1746782672093,350.7966,165.83,165.69,3.9345]
[1746782672396,16.97892565,165.81,165.68,520.98]
[1746782672593,350.7966,165.8,165.68,520.98]
[1746782672791,350.7966,165.79,165.68,520.98]
[1746782673192,6.0333,165.76,165.68,520.98]
[1746782673395,350.7966,165.79,165.71,6.0348]
[1746782673596,350.7966,165.79,165.68,520.98]
[1746782673789,6.0333,165.76,165.68,520.98]
[1746782674094,6.0333,165.76,165.72,6.0343]
[1746782674296,6.0333,165.76,165.68,520.98]
[1746782674495,350.7966,165.79,165.74,6.0335]
[1746782674698,350.7966,165.79,165.68,520.98]
[1746782674999,6.0329,165.77,165.74,6.0337]
[1746782675199,6.0329,165.77,165.68,520.98]
[1746782675398,350.7966,165.79,165.68,520.98]
[1746782676001,6.0325,165.78,165.68,520.98]
[1746782676204,350.7966,165.79,165.69,1.9359]
[1746782676599,6.0325,165.78,165.74,6.0337]
[1746782677303,350.7966,165.79,165.69,1.9359]
[1746782677601,350.7966,165.84,165.7,1.8706]
[1746782677791,6.031,165.82,165.7,1.8706]
[1746782677995,350.7966,165.84,165.7,1.8706]
[1746782679101,6.0313,165.81,165.7,1.8706]
[1746782679302,350.7966,165.84,165.7,1.8706]
[1746782679801,350.7966,165.84,165.72,10.47708094]
[1746782680003,350.7966,165.84,165.8,6.0313]
[1746782680302,350.7966,165.84,165.73,2.0008]
[1746782681597,350.7966,165.84,165.83,6.0305]
[1746782681906,350.7966,165.9,165.8,10.47708094]
[1746782682103,350.7966,165.94,165.87,6.0291]
[1746782682302,350.7966,165.94,165.81,4.0093]
[1746782682505,350.7966,165.93,165.77,63.9036]
[1746782682701,361.27368094,165.93,165.79,6.0319]
[1746782682999,361.27368094,165.93,165.77,1.9036]
[1746782683200,361.27368094,165.93,165.8,6.0314]
[1746782683405,361.27368094,165.93,165.77,1.9036]
[1746782683906,6.0309,165.82,165.77,1.9036]
[1746782684505,350.7966,165.9,165.77,1.9036]
[1746782684698,10.47708094,165.87,165.73,1.9075]
[1746782684899,3.1204,165.86,165.73,1.9075]
[1746782685200,3.1204,165.86,165.72,6.0343]
[1746782685507,350.7966,165.85,165.69,6.1236]
[1746782685695,350.7966,165.85,165.69,23.15500859]
[1746782687114,6.0324,165.78,165.73,6.0339]
[1746782687404,350.7966,165.85,165.73,6.0339]
[1746782687605,350.7966,165.84,165.73,6.0339]
[1746782687908,350.7966,165.84,165.69,23.15500859]
[1746782689307,350.7966,165.84,165.72,17.03140859]
[1746782689502,6.0306,165.83,165.72,17.03140859]
[1746782689697,350.7966,165.84,165.72,17.03140859]
[1746782689898,6.0316,165.8,165.76,6.0328]
[1746782690102,350.7966,165.84,165.69,6.1236]
[1746782690404,350.7966,165.84,165.72,17.03140859]
[1746782690603,6.0308,165.83,165.78,6.032]
[1746782690809,3.1204,165.86,165.72,17.03140859]
[1746782691309,1.9196,165.86,165.72,17.03140859]
[1746782691510,1.9196,165.86,165.82,6.0306]
[1746782691807,350.7966,165.9,165.76,17.03140859]
[1746782692007,1.9598,165.89,165.77,3.8858]
[1746782692604,350.7966,165.88,165.71,17.03140859]
[1746782692912,350.7966,165.87,165.75,17.03140859]
[1746782694513,350.7966,165.87,165.82,6.0306]
[1746782694816,1.9598,165.89,165.72,3.8858]
[1746782695015,1.9598,165.89,165.72,20.91720859]
[1746782695214,6.0302,165.84,165.79,6.0317]
[1746782695607,6.0299,165.85,165.79,6.0317]
[1746782695910,1.9598,165.89,165.78,6.0321]
[1746782696110,350.7966,165.88,165.73,17.03140859]
[1746782696811,6.0299,165.85,165.73,17.03140859]
[1746782697113,350.7966,165.88,165.73,17.03140859]
[1746782698011,350.7966,165.88,165.77,17.03140859]
[1746782698211,350.7966,165.88,165.78,2.0479]
[1746782698411,6.0289,165.88,165.78,2.0479]
[1746782698612,1.9598,165.89,165.78,2.0479]
[1746782698812,6.0289,165.88,165.78,2.0479]
[1746782699117,6.0289,165.88,165.83,6.0303]
[1746782699517,1.9598,165.89,165.78,2.0479]
[1746782700211,1.9598,165.89,165.83,6.0303]
[1746782700612,6.0288,165.88,165.78,2.0479]
[1746782701316,7.9882,165.89,165.78,2.0479]
[1746782701522,7.9882,165.89,165.84,6.0299]
[1746782702021,350.7966,165.94,165.79,18.96350859]
[1746782702221,1.9567,165.93,165.87,6.0288]
[1746782702414,1.9567,165.93,165.8,1.9963]
[1746782702616,1.9567,165.93,165.85,6.0297]
[1746782702815,1.9567,165.93,165.8,1.9963]
[1746782703218,1.9567,165.93,165.83,6.0302]
[1746782703417,6.029,165.88,165.8,1.9963]
[1746782703623,6.029,165.88,165.83,6.0303]
[1746782703923,1.9567,165.93,165.83,6.0303]
[1746782704122,367.82800859,165.92,165.77,521.18]
[1746782704325,350.7966,165.91,165.77,521.18]
[1746782705028,6.0285,165.89,165.77,521.18]
[1746782705322,350.7966,165.91,165.77,521.18]
[1746782705731,350.7966,165.91,165.77,531.65268882]
[1746782705929,350.7966,165.91,165.77,521.18]
[1746782706224,350.7966,165.91,165.79,10.47268882]
[1746782706626,356.8244,165.91,165.79,10.47268882]
[1746782707031,1.9567,165.93,165.8,1.9221]
[1746782707418,1.9567,165.93,165.81,64.0375]
[1746782707723,1.9567,165.93,165.82,1.9925]
[1746782708628,1.9567,165.93,165.83,10.47268882]
[1746782709129,351.9955,165.96,165.83,10.47268882]
[1746782709329,2.0206,165.95,165.83,10.47268882]
[1746782709525,2.0206,165.95,165.89,6.0281]
[1746782709730,2.0206,165.95,165.82,1.9925]
[1746782709932,2.0206,165.95,165.82,12.46518882]
[1746782710431,2.0206,165.95,165.82,1.9925]
[1746782710730,6.0285,165.89,165.84,6.0299]
[1746782711128,2.0206,165.95,165.81,2.0375]
[1746782711432,10.47268882,165.92,165.78,1.8652]
[1746782711633,28.57268882,165.92,165.73,5.5907]
[1746782711825,6.0317,165.8,165.76,6.0328]
[1746782712027,10.47268882,165.88,165.73,5.5907]
[1746782712226,6.0302,165.84,165.79,6.032]
[1746782712428,354.0532,165.87,165.73,3.7244]
[1746782712828,354.0532,165.87,165.79,6.0316]
[1746782713326,354.0532,165.87,165.73,3.7244]
[1746782714131,6.031,165.82,165.79,6.032]
[1746782714333,354.0532,165.87,165.74,17.03128729]
[1746782714737,354.0532,165.87,165.73,3.7244]
[1746782715233,6.0308,165.83,165.79,6.0317]
[1746782715429,354.0532,165.87,165.73,3.7244]
[1746782715830,6.0312,165.82,165.73,3.7244]
[1746782716232,6.0315,165.81,165.73,3.7244]
[1746782716434,354.0532,165.87,165.7,1.0]
[1746782716625,350.7966,165.86,165.7,1.0]
[1746782717335,6.0306,165.83,165.72,17.03128729]
[1746782717734,350.7966,165.86,165.72,17.03128729]
[1746782718233,350.7966,165.86,165.7,1.0]
[1746782718630,350.7966,165.86,165.71,17.03128729]
[1746782718826,6.031,165.82,165.77,6.0324]
[1746782719737,6.0307,165.83,165.78,6.0322]
[1746782719939,6.0307,165.83,165.72,17.03128729]
[1746782720329,6.0311,165.82,165.7,1.0]
[1746782720534,350.7966,165.86,165.72,17.03128729]
[1746782720735,350.7966,165.86,165.77,6.0325]
[1746782721137,350.7966,165.86,165.71,17.03128729]
[1746782721434,6.0308,165.83,165.71,17.03128729]
[1746782721637,350.7966,165.86,165.71,17.03128729]
[1746782721829,350.7966,165.86,165.78,6.0323]
[1746782722034,350.7966,165.86,165.71,17.03128729]
[1746782722235,350.7966,165.86,165.7,1.0]
[1746782722435,17.03128729,165.85,165.7,1.0]
[1746782722740,350.7966,165.84,165.7,1.0]
[1746782723141,6.0337,165.75,165.7,1.0]
[1746782723438,350.7966,165.83,165.7,1.0]
[1746782723633,17.03128729,165.81,165.7,1.0]
[1746782723827,350.7966,165.8,165.68,521.06]
[1746782724231,1.1999,165.79,165.68,521.06]
[1746782725242,1.1999,165.79,165.71,6.0346]
[1746782725540,1.1999,165.79,165.68,521.06]
[1746782726342,6.0335,165.75,165.71,6.0347]
[1746782726642,1.1999,165.79,165.68,521.06]
[1746782726840,6.0332,165.76,165.71,6.0348]
[1746782727038,1.1999,165.79,165.68,521.06]
[1746782727438,1.1999,165.79,165.71,6.0348]
[1746782727840,1.1999,165.79,165.68,521.06]
[1746782728139,1.1999,165.79,165.7,6.0351]
[1746782728344,1.1999,165.79,165.68,521.06]
[1746782728545,6.0359,165.69,165.61,1.9626]
[1746782728948,352.742,165.77,165.61,1.9626]
[1746782729150,6.0349,165.72,165.68,6.0356]
[1746782729449,352.742,165.77,165.68,6.0356]
[1746782729752,352.742,165.77,165.61,1.9626]
[1746782729943,352.742,165.77,165.6,2.0295]
[1746782730243,17.03128729,165.74,165.59,521.24]
[1746782731145,350.7966,165.73,165.61,6.0383]
[1746782731346,350.7966,165.73,165.59,521.24]
[1746782731546,17.03128729,165.72,165.59,521.24]
[1746782731743,350.7966,165.71,165.53,2.0454]
[1746782731943,351.9974,165.71,165.53,2.0454]
[1746782732439,6.0384,165.62,165.57,6.0399]
[1746782732844,350.7966,165.7,165.53,2.0454]
[1746782733148,352.7723,165.69,165.53,2.0454]
[1746782733655,352.7723,165.69,165.57,6.04]
[1746782734045,352.7723,165.69,165.53,2.0454]
[1746782735052,352.7723,165.69,165.55,11.50533158]
[1746782735553,352.7723,165.69,165.6,6.0386]
[1746782735753,350.7966,165.68,165.55,1.0]
[1746782735947,350.7966,165.68,165.57,10.50533158]
[1746782736151,6.0366,165.67,165.63,6.0376]
[1746782736346,350.7966,165.68,165.57,10.50533158]
[1746782736545,1.9757,165.69,165.57,10.50533158]
[1746782737264,361.30193158,165.8,165.61,10.50533158]
[1746782737450,3.15,165.75,165.61,10.50533158]
[1746782737649,350.7966,165.74,165.61,10.50533158]
[1746782739456,350.7966,165.74,165.62,5.8141]
[1746782739661,350.7966,165.74,165.62,9.9398]
[1746782739955,350.7966,165.74,165.57,10.50533158]
[1746782740151,6.0352,165.71,165.65,6.0368]
[1746782740746,6.0356,165.7,165.61,10.50533158]
[1746782740949,350.7966,165.74,165.61,10.50533158]
[1746782742058,350.7966,165.73,165.61,10.50533158]
[1746782742257,350.7966,165.73,165.58,4.1142]
[1746782742452,350.7966,165.73,165.56,1.9121]
[1746782742656,361.30193158,165.72,165.56,1.9121]
[1746782742855,350.7966,165.71,165.55,1.0]
[1746782743259,350.7966,165.71,165.56,1.0]
[1746782743462,350.7966,165.71,165.58,6.0395]
[1746782743759,367.86527421,165.71,165.58,6.0395]
[1746782743961,6.0386,165.61,165.57,6.0399]
[1746782744160,350.7966,165.7,165.56,1.0]
[1746782744362,350.7966,165.69,165.56,1.0]
[1746782745259,6.0372,165.65,165.56,1.0]
[1746782745862,6.0375,165.64,165.56,1.0]
[1746782746163,350.7966,165.69,165.56,1.0]
[1746782746563,6.0382,165.62,165.56,1.0]
[1746782746756,350.7966,165.69,165.56,1.0]
[1746782747262,350.7966,165.69,165.57,6.04]
[1746782747462,350.7966,165.69,165.56,1.0]
[1746782748357,350.7966,165.69,165.58,6.0394]
[1746782748553,350.7966,165.69,165.56,1.0]
[1746782748756,6.0381,165.63,165.59,6.0392]
[1746782748959,350.7966,165.69,165.56,1.0]
[1746782749357,350.7966,165.69,165.58,6.0395]
[1746782749863,6.0381,165.63,165.59,6.0391]
[1746782750165,350.7966,165.69,165.59,6.0391]
[1746782750354,350.7966,165.69,165.56,1.0]
[1746782750355,350.7966,165.69,165.58,6.0395]
[1746782750863,6.0385,165.62,165.58,6.0395]
[1746782751067,350.7966,165.69,165.58,6.0395]
[1746782751262,350.7966,165.69,165.57,6.0399]
[1746782751462,6.0393,165.59,165.56,1.0]
[1746782751763,6.0393,165.59,165.56,7.0401]
[1746782752159,350.7966,165.68,165.56,1.0]
[1746782752364,353.9291,165.67,165.56,1.0]
[1746782752963,353.9291,165.67,165.59,6.0391]
[1746782753162,353.9291,165.67,165.56,1.0]
[1746782754063,350.7966,165.67,165.56,1.0]
[1746782754272,2.0165,165.71,165.58,17.06867421]
[1746782754464,6.036,165.69,165.59,1.8687]
[1746782754767,2.0165,165.71,165.6,1.9651]
[1746782754966,6.0356,165.7,165.64,6.0372]
[1746782755165,2.0165,165.71,165.64,6.0372]
[1746782755463,2.0165,165.71,165.61,1.8902]
[1746782755670,352.0017,165.75,165.61,1.8902]
[1746782756569,352.0017,165.75,165.65,6.0368]
[1746782756570,6.0356,165.69,165.65,6.0368]
[1746782756776,352.0017,165.75,165.61,1.8902]
[1746782757070,6.035,165.71,165.66,6.0364]
[1746782757265,352.0017,165.75,165.66,6.0364]
[1746782757466,352.0017,165.75,165.61,1.8902]
[1746782757673,352.0017,165.75,165.65,6.0368]
[1746782757870,352.0017,165.75,165.61,1.8902]
[1746782758169,6.035,165.71,165.66,6.0364]
[1746782758370,350.7966,165.75,165.62,17.06867421]
[1746782758772,350.7966,165.75,165.66,6.0365]
[1746782758972,350.7966,165.75,165.62,17.06867421]
[1746782759273,6.0364,165.67,165.61,1.8902]
[1746782759473,1.2028,165.74,165.61,1.8902]
[1746782760373,350.7966,165.73,165.61,1.8902]
[1746782760864,6.0363,165.68,165.64,6.0373]
[1746782761068,350.7966,165.73,165.61,1.8902]
[1746782761376,6.0366,165.67,165.63,6.0377]
[1746782761774,350.7966,165.73,165.61,1.8902]
[1746782761965,6.0352,165.71,165.61,1.8902]
[1746782762171,350.7966,165.73,165.61,1.8902]
[1746782762367,350.7966,165.73,165.63,17.06867421]
[1746782762877,6.0351,165.71,165.66,6.0365]
[1746782763175,350.7966,165.73,165.66,6.0365]
[1746782763376,350.7966,165.73,165.61,1.8902]
[1746782763678,352.7951,165.72,165.61,1.8902]
[1746782763877,353.9979,165.72,165.61,1.8902]
[1746782764379,352.7951,165.72,165.61,1.8902]
[1746782764571,6.035,165.71,165.67,6.0363]
[1746782764773,352.7951,165.72,165.61,1.8902]
[1746782765080,6.0356,165.7,165.65,6.0368]
[1746782765279,352.7951,165.72,165.61,1.8902]
[1746782766381,6.0377,165.64,165.59,7.9078]
[1746782766581,352.7951,165.72,165.59,1.8687]
[1746782766975,6.0373,165.65,165.6,6.0387]
[1746782767181,352.7951,165.72,165.59,1.8687]
[1746782767481,352.7951,165.72,165.6,10.4971438]
[1746782767783,10.51188201,165.68,165.45,67.10372458]
[1746782767981,6.0399,165.58,165.51,6.0419]
[1746782768180,1.2041,165.67,165.48,5.7739]
[1746782768384,10.51188201,165.64,165.48,5.7739]
[1746782768782,10.5111761,165.64,165.48,5.7739]
[1746782769179,1.2041,165.67,165.48,5.7739]
[1746782769378,10.5111761,165.64,165.48,5.7739]
[1746782770179,10.5111761,165.6,165.47,521.62]
[1746782770380,1.2041,165.59,165.47,521.62]
[1746782771481,6.0411,165.55,165.49,6.0426]
[1746782771682,6.0411,165.55,165.47,521.62]
[1746782771977,18.29263752,165.59,165.47,521.62]
[1746782772376,18.29263752,165.59,165.5,6.0424]
[1746782772885,6.0412,165.54,165.5,6.0424]
[1746782773183,1.972,165.58,165.51,6.0422]
[1746782773582,6.0409,165.55,165.51,6.0422]
[1746782774379,1.972,165.58,165.52,6.0418]
[1746782774587,1.972,165.58,165.47,521.62]
[1746782775479,6.0404,165.56,165.52,6.0415]
[1746782775874,1.972,165.58,165.47,521.62]
[1746782776492,6.0397,165.58,165.53,6.0412]
[1746782776781,352.801,165.62,165.47,521.62]
[1746782776977,356.8351,165.62,165.47,521.62]
[1746782777380,350.7966,165.62,165.5,17.08853752]
[1746782777588,6.0375,165.64,165.51,3.8603]
[1746782777985,1.2076,165.66,165.52,1.9207]
[1746782778684,6.0385,165.62,165.56,6.0401]
[1746782778887,1.2076,165.66,165.52,1.9207]
[1746782779087,17.08853752,165.65,165.52,1.9207]
[1746782779985,17.08853752,165.65,165.51,3.8603]
[1746782779986,350.7966,165.64,165.51,3.8603]
[1746782780385,350.7966,165.64,165.54,6.041]
[1746782780584,350.7966,165.64,165.51,3.8603]
[1746782780886,6.0403,165.57,165.52,6.0417]
[1746782781086,350.7966,165.64,165.51,3.8603]
[1746782781389,350.7966,165.63,165.51,3.8603]
[1746782781582,350.7966,165.63,165.53,6.0412]
[1746782781782,350.7966,165.63,165.51,3.8603]
[1746782781983,1.9521,165.62,165.51,3.8603]
[1746782783792,6.0397,165.58,165.53,6.0414]
[1746782784092,19.04063752,165.62,165.48,1.9207]
[1746782784287,350.7966,165.61,165.47,521.62]
[1746782785588,17.08853752,165.58,165.47,521.62]
[1746782785893,352.0047,165.57,165.47,521.62]
[1746782786190,350.7966,165.56,165.47,527.6635]
[1746782786393,350.7966,165.56,165.47,521.62]
[1746782786586,1.2081,165.57,165.41,2.9757]
[1746782786587,17.08853752,165.54,165.41,1.0]
[1746782786788,352.7867,165.53,165.41,1.0]
[1746782787192,6.0439,165.47,165.42,6.0451]
[1746782787595,6.0439,165.47,165.41,1.0]
[1746782787892,352.7867,165.53,165.41,1.0]